bitfinex-derivatives/quotes_ETHF0:USTF0_20241105
["timestamp","ask_amount","ask_price","bid_price","bid_amount"]
[1730811006044,0.40852,2448.8,2448.7,0.38474135]
[1730811006045,1.36372,2448.8,2448.7,0.38474135]
[1730811006649,1.36372,2448.8,2448.7,0.79326135]
[1730811006845,42.16372,2448.8,2448.7,0.38474135]
[1730811007148,42.16372,2448.8,2448.4,0.40856]
[1730811007149,44.43127871,2448.8,2448.4,0.40856]
[1730811007342,44.43127871,2448.8,2448.4,0.4751]
[1730811007544,0.40853,2448.7,2448.5,0.79240301]
[1730811007847,0.40853,2448.7,2448.6,0.38386301]
[1730811008150,0.40853,2448.7,2448.6,0.79239301]
[1730811008349,0.40853,2448.7,2448.6,0.38386301]
[1730811010449,3.08460871,2448.7,2448.6,0.38386301]
[1730811010640,0.40853,2448.6,2448.5,0.55969303]
[1730811010839,0.40857,2448.4,2448.2,1.36259]
[1730811011054,0.40857,2448.4,2448.3,0.9684442]
[1730811011346,0.40857,2448.4,2448.3,1.35242533]
[1730811012546,0.40857,2448.4,2448.3,0.94384533]
[1730811013045,4.95817,2448.4,2448.3,0.5598642]
[1730811015460,0.87417,2448.4,2448.3,0.5598642]
[1730811015949,4.95817,2448.4,2448.3,0.5598642]
[1730811016250,0.40858,2448.3,2448.2,0.4764]
[1730811016453,3.08502727,2448.3,2448.2,0.4764]
[1730811016655,6.29282727,2448.3,2448.2,0.4764]
[1730811017052,5.88424727,2448.3,2448.2,1.26888594]
[1730811017259,6.29282727,2448.3,2448.2,1.50874064]
[1730811017457,5.88424727,2448.3,2448.2,1.50874064]
[1730811017652,3.2078,2448.3,2448.2,1.50874064]
[1730811018058,3.2078,2448.3,2448.2,0.885]
[1730811018351,3.2078,2448.3,2448.2,1.50874697]
[1730811018554,3.61638,2448.3,2448.2,0.62374697]
[1730811018756,6.76242727,2448.3,2448.2,0.23987992]
[1730811020358,6.76242727,2448.3,2448.2,0.64847992]
[1730811020359,6.35384727,2448.3,2448.2,0.64847992]
[1730811020552,2.67644727,2448.4,2448.2,0.23987992]
[1730811020757,3.08501727,2448.4,2448.3,0.23987992]
[1730811020953,0.40857,2448.4,2448.3,0.64845992]
[1730811021157,3.15274727,2448.5,2448.4,0.40857]
[1730811021158,3.56130727,2448.5,2448.4,0.40857]
[1730811021357,3.56130727,2448.5,2448.4,1.11964992]
[1730811021559,3.15274727,2448.5,2448.4,1.11964992]
[1730811021757,3.56129727,2448.5,2448.4,0.71107992]
[1730811022152,3.56129727,2448.5,2448.4,0.71094686]
[1730811022562,3.56129727,2448.5,2448.4,1.11951686]
[1730811022862,3.15274727,2448.5,2448.4,1.11951686]
[1730811023059,2.67644727,2448.5,2448.4,1.11951686]
[1730811023256,6.29278727,2448.6,2448.4,0.71094686]
[1730811023464,6.29278727,2448.6,2448.5,0.64829686]
[1730811023667,6.29278727,2448.6,2448.5,1.11769686]
[1730811023962,5.88424727,2448.6,2448.5,1.11769686]
[1730811024470,6.29277727,2448.6,2448.5,0.70914686]
[1730811025162,5.88424727,2448.6,2448.5,0.70914686]
[1730811025367,3.2078,2448.6,2448.5,1.11769686]
[1730811026365,3.61633,2448.6,2448.5,0.70914686]
[1730811026565,3.2078,2448.6,2448.5,1.11769686]
[1730811028667,3.61633,2448.6,2448.5,1.11769686]
[1730811029460,0.40853,2448.6,2448.5,1.11769686]
[1730811029863,6.29276727,2448.7,2448.6,0.40853]
[1730811030062,5.88424727,2448.7,2448.5,0.4694]
[1730811030259,0.40853,2448.6,2448.5,0.87794]
[1730811030473,0.40853,2448.6,2448.5,1.1174444]
[1730811031772,5.88424727,2448.7,2448.5,0.7089044]
[1730811032070,6.29277727,2448.7,2448.6,0.2395044]
[1730811032664,6.29277727,2448.7,2448.6,0.6480344]
[1730811032862,6.29277727,2448.7,2448.6,0.2395044]
[1730811035179,6.29277727,2448.7,2448.6,0.6480344]
[1730811035180,5.88332628,2448.7,2448.6,0.6480344]
[1730811035673,6.29184628,2448.7,2448.6,0.2395044]
[1730811036172,3.61632,2448.7,2448.6,0.2395044]
[1730811037278,3.2078,2448.7,2448.3,0.5226]
[1730811037573,3.2078,2448.7,2448.3,0.93118]
[1730811037574,0.40857,2448.4,2448.3,0.93118]
[1730811037766,0.40857,2448.4,2448.3,1.17066011]
[1730811037973,0.91157,2448.4,2448.3,1.55388666]
[1730811038376,0.503,2448.4,2448.3,1.55388666]
[1730811038971,0.91157,2448.4,2448.3,1.55388666]
[1730811039972,0.503,2448.4,2448.3,1.55388666]
[1730811041075,0.503,2448.4,2448.3,1.31440949]
[1730811041271,0.503,2448.4,2448.3,1.55388799]
[1730811041470,3.08418922,2448.6,2448.5,0.40855]
[1730811041676,3.61268922,2448.6,2448.5,0.6480385]
[1730811041973,3.61268922,2448.6,2448.5,0.2394885]
[1730811042578,3.61268922,2448.6,2448.5,0.6480385]
[1730811042988,3.20414922,2448.6,2448.5,0.6480385]
[1730811043181,3.61267922,2448.6,2448.5,0.6480385]
[1730811043986,3.20414922,2448.6,2448.5,0.6480385]
[1730811044369,3.61267922,2448.6,2448.5,0.6480385]
[1730811045875,6.82047922,2448.6,2448.5,0.6480385]
[1730811046679,6.82047922,2448.6,2448.5,0.2394885]
[1730811047078,6.82047922,2448.6,2448.5,0.6480385]
[1730811047277,6.82047922,2448.6,2448.5,0.2394885]
[1730811047985,4.14483,2448.6,2448.5,0.2394885]
[1730811048377,8.22883,2448.6,2448.5,0.2394885]
[1730811048584,7.8203,2448.6,2448.1,0.4086]
[1730811048784,0.4086,2448.2,2448.1,0.4086]
[1730811048984,2.67622831,2448.3,2448.1,0.23972602]
[1730811049181,0.993,2448.2,2448.1,0.40861]
[1730811049381,0.993,2448.2,2448.1,0.6483516]
[1730811049887,0.993,2448.2,2448.1,1.03206983]
[1730811050184,0.4842,2448.2,2448.1,0.6483516]
[1730811050385,0.4842,2448.2,2448.1,1.03207238]
[1730811050582,0.8928,2448.2,2448.1,0.62346238]
[1730811050784,0.8928,2448.2,2448.1,0.6483616]
[1730811050986,0.8928,2448.2,2448.1,0.2397416]
[1730811051187,0.8928,2448.2,2448.1,0.6483616]
[1730811051388,0.8928,2448.2,2448.1,0.2397416]
[1730811051887,0.8928,2448.2,2448.1,0.64853958]
[1730811052090,0.8928,2448.2,2448.1,0.40862]
[1730811052280,0.8928,2448.2,2448.1,0.64853503]
[1730811052685,0.8928,2448.2,2448.1,0.23991503]
[1730811052888,0.8928,2448.2,2448.1,0.64853503]
[1730811053894,3.61639,2448.3,2448.2,0.4086]
[1730811054079,4.11489,2448.3,2448.2,0.23991503]
[1730811055892,0.4086,2448.2,2448.1,0.40861]
[1730811056093,0.4086,2448.2,2448.1,0.64833017]
[1730811057393,0.4086,2448.2,2448.1,0.64834017]
[1730811058294,0.4086,2448.2,2448.1,0.23972017]
[1730811059095,0.4086,2448.2,2448.1,0.40862]
[1730811059301,0.4086,2448.2,2448.1,0.64828226]
[1730811059490,0.4086,2448.2,2448.1,0.23966226]
[1730811059891,0.4086,2448.2,2448.1,0.64828226]
[1730811060600,3.08537275,2448.2,2448.1,0.64828226]
[1730811060807,0.4086,2448.2,2448.1,0.64828226]
[1730811061097,3.08535118,2448.2,2448.1,0.64828226]
[1730811061396,2.67675118,2448.2,2448.1,0.64828226]
[1730811061596,2.67675118,2448.2,2448.1,0.64829796]
[1730811062188,3.08535118,2448.2,2448.1,0.64829796]
[1730811062389,2.67675118,2448.2,2448.1,0.64829796]
[1730811062700,2.67675118,2448.2,2448.1,0.64829939]
[1730811063003,3.08535118,2448.2,2448.1,0.64829939]
[1730811063392,2.67675118,2448.2,2448.1,0.64829939]
[1730811063896,6.43973296,2448.2,2447.3,4.27172159]
[1730811064102,3.85447088,2447.5,2447.3,2.00256409]
[1730811064285,3.85447088,2447.5,2446.7,0.23222751]
[1730811064286,2.67706792,2447.4,2446.7,0.23222751]
[1730811064486,3.2078,2446.9,2446.8,0.40884]
[1730811064689,3.2078,2446.9,2446.3,1.06392159]
[1730811064887,3.2078,2446.9,2446.6,0.40886]
[1730811064888,3.61663,2446.9,2446.6,0.40886]
[1730811065098,0.40886,2446.7,2446.4,0.4089]
[1730811065297,3.2078,2446.6,2446.4,0.4089]
[1730811065695,3.2078,2446.6,2446.1,0.4915]
[1730811065893,3.2078,2446.6,2446.5,0.40889]
[1730811067599,3.61667,2446.6,2446.4,0.40889]
[1730811068603,3.61667,2446.6,2446.1,0.721155]
[1730811068604,3.2078,2446.6,2446.5,0.40889]
[1730811068787,3.61667,2446.6,2446.4,0.40889]
[1730811069697,3.2078,2446.6,2446.5,0.40889]
[1730811072403,3.61667,2446.6,2446.5,0.40889]
[1730811072696,3.2078,2446.6,2446.5,0.40889]
[1730811073096,3.61667,2446.6,2446.1,0.721155]
[1730811073291,0.40889,2446.5,2446.4,0.4089]
[1730811073603,3.61668,2446.6,2446.4,0.4089]
[1730811074200,3.2078,2446.6,2446.1,0.721155]
[1730811074508,3.2078,2446.3,2446.2,0.40894]
[1730811079805,3.2078,2446.3,2446.2,4.49694]
[1730811080002,3.2078,2446.6,2446.5,0.40889]
[1730811080519,3.2078,2447.0,2446.9,0.40882]
[1730811081006,3.6166,2447.0,2446.9,0.40882]
[1730811081600,3.2078,2447.0,2446.8,0.40882]
[1730811081798,0.40882,2446.9,2446.8,0.40882]
[1730811082004,0.40882,2446.9,2446.7,0.40884]
[1730811082311,0.40882,2446.9,2446.7,0.40885]
[1730811082609,0.40882,2446.9,2446.8,0.40884]
[1730811083207,3.61662,2446.9,2446.8,0.40884]
[1730811083601,3.61662,2446.9,2446.6,1.5239]
[1730811083906,3.61662,2446.9,2446.8,0.40884]
[1730811084104,3.2078,2446.9,2446.7,0.40884]
[1730811084303,3.2078,2446.9,2446.6,1.5239]
[1730811084505,3.2078,2446.9,2446.8,0.40884]
[1730811084706,0.40885,2446.8,2446.7,0.40885]
[1730811085802,0.40885,2446.8,2446.3,1.76943783]
[1730811085803,0.40887,2446.6,2446.5,0.40888]
[1730811086108,0.40887,2446.6,2446.4,0.40889]
[1730811086109,0.40889,2446.5,2446.4,0.40889]
[1730811086803,5.76069765,2446.6,2446.2,0.4772]
[1730811087007,3.61673,2446.3,2446.1,0.40894]
[1730811087198,3.61673,2446.3,2446.0,0.40896]
[1730811087199,0.40895,2446.1,2446.0,0.40896]
[1730811087602,44.0078,2446.3,2446.1,0.40895]
[1730811087603,44.41673,2446.3,2446.1,0.40895]
[1730811087905,0.40894,2446.2,2446.1,0.40895]
[1730811088104,0.40894,2446.2,2445.8,0.4772]
[1730811088300,0.40894,2446.2,2446.0,0.40896]
[1730811088497,0.40894,2446.2,2445.8,0.4772]
[1730811088901,0.40895,2446.1,2446.0,0.40896]
[1730811089709,3.61675,2446.1,2446.0,0.40896]
[1730811091005,0.40897,2446.0,2445.9,0.40897]
[1730811091209,0.40899,2445.9,2445.8,0.4772]
[1730811091606,0.409,2445.8,2445.7,0.90071]
[1730811091907,0.409,2445.9,2445.8,0.409]
[1730811092603,3.2078,2446.1,2445.6,0.5036]
[1730811092808,0.40901,2445.8,2445.7,0.409]
[1730811093008,3.2078,2446.1,2445.7,0.409]
[1730811093209,0.409,2445.9,2445.7,0.409]
[1730811093405,40.8,2446.0,2445.2,3.2078]
[1730811093406,3.2078,2445.8,2445.2,3.2078]
[1730811093606,3.2078,2445.5,2445.0,0.4799]
[1730811093813,3.2078,2445.5,2445.3,0.40907]
[1730811094009,3.2078,2445.7,2445.2,2.55289765]
[1730811094210,3.2078,2445.6,2445.1,3.2078]
[1730811094412,3.2078,2445.6,2445.5,0.40905]
[1730811094608,3.2078,2445.6,2445.1,3.2078]
[1730811094815,3.2078,2445.6,2445.4,0.40905]
[1730811095117,3.2078,2445.6,2445.1,3.2078]
[1730811095304,3.2078,2445.6,2445.5,0.40905]
[1730811095614,3.2078,2445.6,2445.1,3.2078]
[1730811095915,3.2078,2445.6,2445.5,0.40905]
[1730811096712,0.40902,2445.7,2445.5,0.40905]
[1730811096909,3.2078,2445.6,2445.5,0.40905]
[1730811097308,3.2078,2445.6,2445.4,0.40906]
[1730811097515,3.61684,2445.6,2445.4,0.40906]
[1730811097710,4.11204,2445.6,2445.4,0.40906]
[1730811098213,4.11204,2445.6,2445.3,0.40907]
[1730811098411,4.11204,2445.6,2445.0,6.4934535]
[1730811098611,4.11204,2445.6,2445.1,0.23649565]
[1730811098810,4.11204,2445.6,2445.3,0.40907]
[1730811099115,3.703,2445.6,2445.0,6.4934535]
[1730811099310,3.703,2445.6,2445.5,0.40905]
[1730811099515,3.703,2445.6,2445.0,6.4934535]
[1730811099810,3.703,2445.6,2445.4,0.40906]
[1730811100018,4.11204,2445.6,2445.4,0.40906]
[1730811100207,3.703,2445.6,2445.4,0.40906]
[1730811100410,4.11204,2445.6,2445.4,0.40906]
[1730811101218,3.703,2445.6,2445.4,0.40906]
[1730811101609,4.11204,2445.6,2445.4,0.40906]
[1730811102221,4.11204,2445.6,2445.0,3.2856535]
[1730811102510,4.11204,2445.6,2445.4,0.40907]
[1730811103115,4.11205,2445.6,2445.3,0.40907]
[1730811103317,4.11205,2445.6,2445.4,0.40906]
[1730811104017,0.40905,2445.5,2445.3,0.40907]
[1730811104223,3.2078,2445.5,2445.1,0.40912]
[1730811104409,3.2078,2445.5,2445.4,0.40907]
[1730811104611,0.90425,2445.6,2445.4,0.40907]
[1730811105118,3.2078,2445.5,2445.4,0.40907]
[1730811105712,3.61685,2445.5,2445.3,0.40908]
[1730811106119,3.2078,2445.5,2445.4,0.40907]
[1730811107016,0.40908,2445.4,2445.2,0.40909]
[1730811107319,0.92778,2445.4,2445.2,0.40909]
[1730811108016,4.6083,2445.4,2445.0,0.73275585]
[1730811108213,3.2078,2445.2,2445.1,0.64619147]
[1730811112124,0.40905,2445.5,2445.1,0.23707147]
[1730811112324,3.61687,2445.4,2445.2,0.64616147]
[1730811112526,3.61687,2445.4,2445.3,0.40909]
[1730811112716,3.2078,2445.4,2445.3,0.40909]
[1730811112913,7.70647,2445.4,2445.2,0.40909]
[1730811113221,3.2078,2445.4,2445.3,0.40909]
[1730811113723,7.2974,2445.4,2445.3,0.40909]
[1730811115423,3.2078,2445.4,2445.3,0.40909]
[1730811115620,3.2078,2445.4,2445.3,0.64635462]
[1730811117523,0.4922,2445.7,2445.3,0.23726462]
[1730811117730,0.90122,2445.7,2445.5,0.40904]
[1730811117928,3.2078,2445.6,2445.5,0.40904]
[1730811120522,3.61684,2445.6,2445.4,1.93676]
[1730811121424,3.2078,2445.6,2445.5,0.40905]
[1730811121828,3.61684,2445.6,2445.4,1.93676]
[1730811122024,5.76069765,2445.6,2445.3,0.40908]
[1730811122231,1.42036,2445.5,2445.3,0.40908]
[1730811122527,0.40908,2445.4,2445.2,0.4091]
[1730811123035,0.4874,2445.3,2445.2,0.4091]
[1730811123625,0.4874,2445.3,2445.1,1.0198]
[1730811123832,0.40911,2445.2,2445.0,0.40913]
[1730811124825,3.6952,2445.3,2444.9,0.486]
[1730811125024,3.2078,2445.0,2444.7,1.0198]
[1730811125226,0.5027,2444.9,2444.7,1.42897]
[1730811125530,0.5027,2444.9,2444.7,0.91047]
[1730811125531,0.91185,2444.9,2444.7,0.91047]
[1730811126127,0.5027,2444.9,2444.8,0.40917]
[1730811126925,0.5027,2444.9,2444.7,0.91048]
[1730811128224,0.5027,2444.9,2444.7,0.5013]
[1730811128441,0.5027,2444.9,2444.8,0.40917]
[1730811129334,0.5027,2444.9,2444.6,0.5035]
[1730811129540,3.2078,2444.7,2444.6,1.0041]
[1730811129723,3.2078,2444.7,2444.6,1.4133]
[1730811131128,3.2078,2444.7,2444.6,1.24190733]
[1730811131332,3.2078,2444.7,2444.6,1.0041]
[1730811131737,46.56069765,2444.7,2444.6,1.0041]
[1730811131931,44.41699,2444.7,2444.6,1.0041]
[1730811132227,0.40921,2444.6,2444.3,0.40924]
[1730811132436,0.5275,2444.5,2444.4,0.23786477]
[1730811132625,0.40925,2444.4,2444.1,1.91378]
[1730811132825,3.2078,2444.2,2444.1,1.91378]
[1730811133237,3.2078,2444.2,2444.1,2.15171219]
[1730811136241,0.40924,2444.4,2444.1,2.15171219]
[1730811136440,1.0256,2444.5,2444.2,0.23793219]
[1730811136627,3.61705,2444.3,2444.1,1.91379]
[1730811136829,3.61705,2444.3,2443.6,3.2078]
[1730811136830,2.55289765,2444.2,2443.6,3.2078]
[1730811137127,1.0256,2444.5,2443.8,0.40934]
[1730811137128,5.76069765,2444.0,2443.8,0.40934]
[1730811137329,5.76069765,2444.0,2443.9,0.40932]
[1730811137527,3.2078,2444.0,2443.9,0.40932]
[1730811137745,3.2078,2444.0,2443.9,0.23781938]
[1730811138040,3.737,2444.0,2443.8,0.91703]
[1730811139639,3.737,2444.0,2443.9,0.40932]
[1730811139839,3.737,2444.0,2443.8,0.91702]
[1730811140042,3.737,2444.0,2443.9,0.40932]
[1730811140236,3.737,2444.0,2443.8,0.91703]
[1730811140437,3.737,2444.0,2443.9,0.40932]
[1730811140832,3.737,2444.0,2443.8,0.91702]
[1730811141037,3.737,2444.0,2443.9,0.40932]
[1730811142344,3.2078,2444.0,2443.9,0.40932]
[1730811143142,3.2078,2444.0,2443.9,4.73903273]
[1730811144041,2.55289765,2444.5,2443.9,4.32971273]
[1730811144237,2.55289765,2444.5,2444.0,0.4093]
[1730811144238,3.2078,2444.1,2444.0,0.4093]
[1730811144934,3.2078,2444.1,2444.0,0.6469643]
[1730811145344,3.2078,2444.1,2444.0,0.4093]
[1730811146047,3.2078,2444.4,2444.3,0.40925]
[1730811147344,3.2078,2444.4,2444.2,0.40926]
[1730811147549,3.2078,2444.4,2443.8,0.5077]
[1730811147747,3.2078,2444.1,2444.0,0.4093]
[1730811151257,3.61709,2444.1,2443.9,0.40932]
[1730811151548,3.2078,2444.1,2443.8,0.5077]
[1730811151852,4.12249,2444.1,2443.9,0.40931]
[1730811152352,0.91469,2444.1,2443.9,0.40931]
[1730811152558,3.2078,2444.0,2443.9,0.40931]
[1730811152852,6.17000765,2444.0,2443.8,0.91703]
[1730811153053,5.76069765,2444.0,2443.8,0.5077]
[1730811153352,5.76069765,2444.0,2443.9,0.40932]
[1730811153554,5.76069765,2444.0,2443.8,0.5077]
[1730811153850,5.76069765,2444.0,2443.9,0.40932]
[1730811156053,5.76069765,2444.0,2443.8,0.91703]
[1730811156749,5.76069765,2444.0,2443.7,0.5323]
[1730811157050,2.55289765,2443.8,2443.6,0.40936]
[1730811157348,3.2078,2443.7,2443.6,0.40936]
[1730811157554,4.11665,2443.7,2443.5,1.39628]
[1730811158246,4.11665,2443.7,2443.2,0.25840507]
[1730811158247,3.7073,2443.7,2443.2,0.25840507]
[1730811158449,3.2078,2443.4,2443.3,0.40942]
[1730811161654,2.55289765,2443.5,2443.4,0.4094]
[1730811161856,5.76069765,2443.5,2443.4,0.4094]
[1730811164053,2.55289765,2443.5,2443.4,0.4094]
[1730811164257,5.76069765,2443.5,2443.4,0.4094]
[1730811164762,3.2078,2443.5,2443.4,0.4094]
[1730811166668,0.96555652,2443.5,2443.4,4.74008738]
[1730811166960,3.61714,2443.8,2443.6,0.40936]
[1730811167263,3.61715,2443.8,2443.6,0.40937]
[1730811167961,3.61714,2443.8,2443.6,0.40936]
[1730811168666,3.2078,2443.8,2443.5,0.5292]
[1730811168868,0.40937,2443.7,2443.5,0.5292]
[1730811169160,0.40937,2443.7,2443.5,0.93858]
[1730811169567,2.96226765,2443.7,2443.5,0.93858]
[1730811169758,2.55289765,2443.7,2443.5,0.5292]
[1730811169960,2.96225765,2443.7,2443.5,0.93858]
[1730811170765,2.55289765,2443.7,2443.5,0.5292]
[1730811170961,2.55289765,2443.7,2443.6,0.40937]
[1730811171464,3.2078,2443.8,2443.6,1.43287]
[1730811171671,3.2078,2443.8,2443.6,1.0235]
[1730811171964,3.61714,2443.8,2443.6,1.43286]
[1730811173676,3.61714,2443.8,2443.6,1.0235]
[1730811173862,3.61714,2443.8,2443.6,1.43286]
[1730811174663,3.2078,2443.8,2443.7,0.40935]
[1730811175067,4.092,2443.8,2443.7,0.40935]
[1730811175457,3.2078,2443.8,2443.7,0.6478633]
[1730811176760,3.2078,2443.8,2443.7,0.64791879]
[1730811177360,3.45322765,2443.9,2443.7,0.64791879]
[1730811177666,3.2078,2443.8,2443.7,0.40935]
[1730811177868,3.2078,2443.8,2443.7,0.64800632]
[1730811178562,7.2998,2443.8,2443.7,0.23865632]
[1730811178762,7.70914,2443.8,2443.7,0.23865632]
[1730811179264,0.40937,2443.6,2443.5,0.5292]
[1730811179464,0.40937,2443.6,2443.5,0.76791888]
[1730811179664,0.40937,2443.6,2443.5,0.23871888]
[1730811181157,2.55289765,2443.7,2443.3,0.94061]
[1730811181375,0.9028,2443.5,2443.4,0.23877038]
[1730811181570,6.66349765,2443.5,2443.4,0.23877038]
[1730811182373,3.2078,2443.5,2443.4,0.64817038]
[1730811182965,3.06679765,2443.7,2443.5,0.40939]
[1730811183169,3.47614765,2443.7,2443.6,0.23877038]
[1730811183376,3.06679765,2443.7,2443.6,0.64814038]
[1730811183573,2.55289765,2443.7,2443.6,0.64814038]
[1730811183776,2.55289765,2443.7,2443.6,0.64813455]
[1730811184067,3.2078,2443.8,2443.6,0.64813455]
[1730811184068,3.2078,2443.8,2443.7,0.40935]
[1730811184265,3.2078,2443.8,2443.7,1.17341455]
[1730811187367,44.0078,2444.2,2443.7,5.2653157]
[1730811187568,3.2078,2444.2,2444.1,0.40929]
[1730811187775,3.2078,2444.2,2444.1,0.2386657]
[1730811187973,3.61707,2444.2,2444.1,0.2386657]
[1730811188270,0.40929,2444.1,2443.8,1.42402]
[1730811188465,3.48478765,2444.1,2443.9,0.23870427]
[1730811188666,3.48478765,2444.1,2443.8,1.0147]
[1730811188667,3.48478765,2444.1,2444.0,0.23870427]
[1730811189361,7.16669765,2444.1,2443.3,3.2078]
[1730811189569,5.76069765,2443.8,2443.5,1.95537]
[1730811189767,0.93196,2443.7,2443.6,0.23871011]
[1730811190469,0.5226,2443.7,2443.6,0.23871011]
[1730811190773,0.5226,2443.7,2443.5,1.95538]
[1730811190970,0.93195,2443.7,2443.6,0.23875342]
[1730811191269,0.5226,2443.7,2443.6,0.23875023]
[1730811193273,0.93195,2443.7,2443.6,0.23875023]
[1730811193680,0.5226,2443.7,2443.6,0.23875023]
[1730811194275,0.5226,2443.7,2443.6,0.64812023]
[1730811194673,0.5226,2443.7,2443.6,1.03039966]
[1730811194869,3.2078,2443.8,2443.7,0.40935]
[1730811195071,3.2078,2443.8,2443.7,0.64810023]
[1730811196379,3.2078,2443.8,2443.7,1.03047742]
[1730811196581,3.2078,2443.8,2443.7,1.03048251]
[1730811198274,3.2078,2443.8,2443.7,1.03063574]
[1730811199173,3.2078,2443.8,2443.7,0.62128574]
[1730811199372,3.61714,2443.8,2443.7,0.62128574]
[1730811199575,3.2078,2443.8,2443.7,0.62128574]
[1730811199776,3.2078,2443.8,2443.7,1.03063574]
[1730811199982,0.40933,2443.9,2443.7,1.03063574]
[1730811200184,3.61713,2443.9,2443.8,0.23875023]
[1730811202086,3.61713,2443.9,2443.8,0.23923395]
[1730811203184,3.2078,2443.9,2443.8,0.64857395]
[1730811203380,4.38741189,2443.9,2443.8,0.23923395]
[1730811203582,4.79673189,2443.9,2443.8,0.23923395]
[1730811205287,4.79673189,2443.9,2443.8,0.23924807]
[1730811205891,4.38741189,2443.9,2443.8,0.64858807]
[1730811206092,4.38741189,2443.9,2443.8,1.03142692]
[1730811206790,4.38741189,2443.9,2443.8,0.62208692]
[1730811206999,4.79673189,2443.9,2443.8,0.62208692]
[1730811207588,1.58893189,2443.9,2443.8,0.62208692]
[1730811207789,4.38741189,2443.9,2443.8,0.62208692]
[1730811207991,4.79673189,2443.9,2443.8,0.62208692]
[1730811208198,4.38741189,2443.9,2443.8,0.62208692]
[1730811208403,4.38741189,2443.9,2443.8,1.03142692]
[1730811208805,4.38741189,2443.9,2443.8,0.40934]
[1730811209005,4.38741189,2443.9,2443.8,0.62220614]
[1730811209208,4.38741189,2443.9,2443.8,1.03154614]
[1730811209406,3.2078,2443.9,2443.8,1.03154614]
[1730811210809,4.38741189,2443.9,2443.8,0.62220614]
[1730811212311,4.79673189,2443.9,2443.8,0.62220614]
[1730811212610,4.38741189,2443.9,2443.8,0.62225672]
[1730811212810,4.79673189,2443.9,2443.8,0.62225672]
[1730811213005,4.38741189,2443.9,2443.8,0.62225672]
[1730811213210,4.79673189,2443.9,2443.8,0.62225672]
[1730811213411,4.38741189,2443.9,2443.8,0.62225672]
[1730811213708,4.79673189,2443.9,2443.8,0.62225672]
[1730811214215,4.79673189,2443.9,2443.8,0.23930682]
[1730811214714,8.88873189,2443.9,2443.8,0.23930682]
[1730811216216,0.40938,2443.6,2443.3,1.48161]
[1730811216412,1.71201189,2443.5,2443.4,0.79233169]
[1730811216607,1.71201189,2443.5,2443.4,1.1754096]
[1730811218209,1.71201189,2443.5,2443.4,1.6819412]
[1730811218409,1.71201189,2443.5,2443.4,1.1754096]
[1730811218715,1.71201189,2443.5,2443.4,1.5848096]
[1730811219213,1.71201189,2443.5,2443.4,1.1754096]
[1730811219612,1.71201189,2443.5,2443.3,1.48161]
[1730811219812,2.12140189,2443.5,2443.4,1.17531998]
[1730811220007,2.12140189,2443.5,2443.4,0.62237819]
[1730811220415,2.12140189,2443.5,2443.4,0.23935353]
[1730811221814,3.2078,2443.6,2443.4,0.23935353]
[1730811222016,3.2078,2443.6,2443.5,0.64874353]
[1730811222208,4.38741189,2443.6,2443.5,0.64874353]
[1730811222713,4.38741189,2443.6,2443.5,1.03168061]
[1730811223717,4.38741189,2443.6,2443.5,1.03174538]
[1730811223718,3.2078,2443.6,2443.5,1.03174538]
[1730811223916,3.2078,2443.6,2443.5,0.40939]
[1730811224119,4.38741189,2443.6,2443.5,1.03170694]
[1730811225320,3.2078,2443.6,2443.5,1.03170694]
[1730811226414,3.61717,2443.6,2443.5,0.62231694]
[1730811226621,3.61717,2443.6,2443.5,0.23932998]
[1730811227117,3.61717,2443.6,2443.5,0.23942799]
[1730811228123,0.40946,2443.1,2442.8,0.4095]
[1730811228420,2.55611561,2443.0,2442.9,1.41484717]
[1730811228626,44.0078,2443.1,2442.9,1.0317]
[1730811228822,40.8,2443.1,2443.0,0.40947]
[1730811229028,3.2078,2443.4,2443.3,0.40942]
[1730811229322,3.2078,2443.4,2443.3,0.79169728]
[1730811229529,3.2078,2443.4,2443.3,1.85127238]
[1730811231021,3.2078,2443.4,2443.3,5.94407238]
[1730811231618,3.2078,2443.7,2443.3,5.53465238]
[1730811231826,3.2078,2443.7,2443.5,0.40939]
[1730811232025,3.2078,2443.7,2443.6,0.5229]
[1730811232322,3.2078,2443.7,2443.6,0.93227]
[1730811233730,3.2078,2443.7,2443.6,0.5229]
[1730811234630,3.2078,2443.7,2443.6,1.86713909]
[1730811234927,2.55611561,2443.9,2443.6,1.45776909]
[1730811235129,2.55611561,2443.9,2443.7,0.79128028]
[1730811235323,2.55611561,2443.9,2443.7,0.40934]
[1730811236425,2.55611561,2443.9,2443.6,0.5229]
[1730811236631,2.55611561,2443.9,2443.7,0.79121424]
[1730811236931,2.55611561,2443.9,2443.7,0.40934]
[1730811237129,2.55611561,2443.9,2443.6,0.5229]
[1730811237433,2.55611561,2443.9,2443.8,0.40934]
[1730811237730,3.2078,2444.0,2443.8,0.40933]
[1730811237928,3.2078,2444.0,2443.9,0.5156]
[1730811239134,3.2078,2444.0,2443.9,1.0352]
[1730811239726,0.40929,2444.1,2443.9,1.0352]
[1730811239927,0.40929,2444.1,2444.0,0.23858484]
[1730811240230,3.2078,2444.1,2444.0,0.77818484]
[1730811240425,44.0078,2444.1,2444.0,0.77818484]
[1730811241225,44.0078,2444.1,2444.0,1.18748484]
[1730811241427,44.0078,2444.1,2444.0,0.77818484]
[1730811241627,44.0078,2444.1,2444.0,1.18748484]
[1730811241923,3.2078,2444.1,2444.0,1.18748484]
[1730811242732,3.2078,2444.1,2444.0,1.56908156]
[1730811243326,7.804,2444.1,2443.3,1.47334159]
[1730811243524,5.76391561,2443.6,2443.4,2.78470953]
[1730811243831,5.76391561,2443.6,2443.5,0.647949]
[1730811244027,5.76391561,2443.6,2443.5,1.41146297]
[1730811244228,3.2078,2443.6,2443.5,1.41146297]
[1730811244832,3.2078,2443.6,2443.5,1.00212181]
[1730811245032,3.61717,2443.6,2443.5,0.62033389]
[1730811246128,4.17607,2443.6,2443.5,0.62033389]
[1730811247334,4.17607,2443.6,2443.5,0.23858069]
[1730811247731,4.17607,2443.6,2443.5,0.23853503]